Workbook

Sheet Energex >>>

Sheet Input Data
A1: Public Lighting Quantity Inputs | B1: Units | C1: 2020-21 | D1: 2021-22 | E1: 2022-23 | F1: 2023-24 | G1: 2024-25
A3: Opening Population Public Lights
A5: NPL1 (Energex Owned & Operated)
A6: Major Conventional (SV) | B6: # | C6: 32990.73184 | D6: 31787.09482 | E6: 29643.2383 | F6: 27160.89813 | G6: 24386.5942
A7: Minor Conventional (SV) | B7: # | C7: 26438.72582 | D7: 25583.56907 | E7: 23990.56169 | F7: 22097.16313 | G7: 19944.6269
A8: Major Conventional (non SV) | B8: # | C8: 2894.613204 | D8: 2789.005858 | E8: 2600.903472 | F8: 2383.102464 | G8: 2139.6845
A9: Minor Conventional (non SV) | B9: # | C9: 84362.60395 | D9: 81633.90775 | E9: 76550.82428 | F9: 70509.23082 | G9: 63640.76211
A10: Major LED | B10: # | C10: 703.5833485 | D10: 2042.827715 | E10: 4444.786622 | F10: 7264.9278 | G10: 10452.64969
A11: Minor LED | B11: # | C11: 2024.654226 | D11: 5878.507182 | E11: 12874.59804 | F11: 21169.59005 | G11: 30600.59499
A12: Total | B12: # | C12: =SUM(C6:C11) -> 149414.9124 | D12: =SUM(D6:D11) -> 149714.9124 | E12: =SUM(E6:E11) -> 150104.9124 | F12: =SUM(F6:F11) -> 150584.9124 | G12: =SUM(G6:G11) -> 151164.9124
A14: NPL2 (Gifted & Energex Operated)
A15: Major Conventional (SV) | B15: # | C15: 54799.28481 | D15: 53054.21486 | E15: 48879.64032 | F15: 43835.65182 | G15: 37963.10175
A16: Minor Conventional (SV) | B16: # | C16: 27466.54693 | D16: 26727.11222 | E16: 24793.03009 | F16: 22415.11951 | G16: 19612.27575
A17: Major Conventional (non SV) | B17: # | C17: 760.2571661 | D17: 736.0469608 | E17: 678.1310551 | F17: 608.1533462 | G17: 526.6805991
A18: Minor Conventional (non SV) | B18: # | C18: 96006.23627 | D18: 93421.62515 | E18: 86661.25784 | F18: 78349.53791 | G18: 68552.51171
A19: Major LED | B19: # | C19: 1696.529628 | D19: 4925.809785 | E19: 10628.30023 | F19: 17232.26644 | G19: 24686.28926
A20: Minor LED | B20: # | C20: 3640.232798 | D20: 10569.27863 | E20: 22898.72807 | F20: 37253.35859 | G20: 53548.22854
A21: Total | B21: # | C21: =SUM(C15:C20) -> 184369.0876 | D21: =SUM(D15:D20) -> 189434.0876 | E21: =SUM(E15:E20) -> 194539.0876 | F21: =SUM(F15:F20) -> 199694.0876 | G21: =SUM(G15:G20) -> 204889.0876
A22: Total Opening Lights | B22: # | C22: =SUM(C12,C21) -> 333784 | D22: =SUM(D12,D21) -> 339149 | E22: =SUM(E12,E21) -> 344644 | F22: =SUM(F12,F21) -> 350279 | G22: =SUM(G12,G21) -> 356054
A24: Public Lights Additions by Type
A26: NPL1 (Energex Owned & Operated)
A27: Major Conventional (SV) | B27: # | C27: 0 | D27: 0 | E27: 0 | F27: 0 | G27: 0
A28: Minor Conventional (SV) | B28: # | C28: 0 | D28: 0 | E28: 0 | F28: 0 | G28: 0
A29: Major Conventional (non SV) | B29: # | C29: 0 | D29: 0 | E29: 0 | F29: 0 | G29: 0
A30: Minor Conventional (non SV) | B30: # | C30: 0 | D30: 0 | E30: 0 | F30: 0 | G30: 0
A31: Major LED | B31: # | C31: 2042.827715 | D31: 2401.958907 | E31: 2820.141178 | F31: 3187.721894 | G31: 3618.254303
A32: Minor LED | B32: # | C32: 5878.507182 | D32: 6996.090856 | E32: 8294.992016 | F32: 9431.004936 | G32: 10926.22227
A33: Total | B33: # | C33: =SUM(C27:C32) -> 7921.334897 | D33: =SUM(D27:D32) -> 9398.049763 | E33: =SUM(E27:E32) -> 11115.13319 | F33: =SUM(F27:F32) -> 12618.72683 | G33: =SUM(G27:G32) -> 14544.47658
A35: NPL2 (Gifted & Energex Operated)
A36: Major Conventional (SV) | B36: # | C36: 0 | D36: 0 | E36: 0 | F36: 0 | G36: 0
A37: Minor Conventional (SV) | B37: # | C37: 0 | D37: 0 | E37: 0 | F37: 0 | G37: 0
A38: Major Conventional (non SV) | B38: # | C38: 0 | D38: 0 | E38: 0 | F38: 0 | G38: 0
A39: Minor Conventional (non SV) | B39: # | C39: 0 | D39: 0 | E39: 0 | F39: 0 | G39: 0
A40: Major LED | B40: # | C40: 4925.809785 | D40: 5702.490446 | E40: 6603.966207 | F40: 7454.022816 | G40: 8433.78812
A41: Minor LED | B41: # | C41: 10569.27863 | D41: 12329.44944 | E41: 14354.63052 | F41: 16294.86995 | G41: 18699.70201
A42: Total | B42: # | C42: =SUM(C36:C41) -> 15495.08841 | D42: =SUM(D36:D41) -> 18031.93989 | E42: =SUM(E36:E41) -> 20958.59673 | F42: =SUM(F36:F41) -> 23748.89277 | G42: =SUM(G36:G41) -> 27133.49013
A43: Total Additions | B43: # | C43: =SUM(C33,C42) -> 23416.42331 | D43: =SUM(D33,D42) -> 27429.98965 | E43: =SUM(E33,E42) -> 32073.72992 | F43: =SUM(F33,F42) -> 36367.6196 | G43: =SUM(G33,G42) -> 41677.96671
A45: Public Lights Disposals by Type
A47: NPL1 (Energex Owned & Operated)
A48: Major Conventional (SV) | B48: # | C48: 1850.467351 | D48: 2143.856521 | E48: 2482.34017 | F48: 2774.303929 | G48: 3124.141521
A49: Minor Conventional (SV) | B49: # | C49: 1338.267185 | D49: 1593.007377 | E49: 1893.39856 | F49: 2152.536225 | G49: 2499.771157
A50: Major Conventional (non SV) | B50: # | C50: 162.3603639 | D50: 188.1023865 | E50: 217.8010075 | F50: 243.4179643 | G50: 274.1127823
A51: Minor Conventional (non SV) | B51: # | C51: 4270.239997 | D51: 5083.083479 | E51: 6041.593455 | F51: 6868.468711 | G51: 7976.451117
A52: Major LED | B52: # | C52: 0 | D52: 0 | E52: 0 | F52: 0 | G52: 0
A53: Minor LED | B53: # | C53: 0 | D53: 0 | E53: 0 | F53: 0 | G53: 0
A54: Total | B54: # | C54: =SUM(C48:C53) -> 7621.334897 | D54: =SUM(D48:D53) -> 9008.049763 | E54: =SUM(E48:E53) -> 10635.13319 | F54: =SUM(F48:F53) -> 12038.72683 | G54: =SUM(G48:G53) -> 13874.47658
A56: NPL2 (Gifted & Energex Operated)
A57: Major Conventional (SV) | B57: # | C57: 3418.384867 | D57: 4174.57454 | E57: 5043.988499 | F57: 5872.550069 | G57: 6819.182283
A58: Minor Conventional (SV) | B58: # | C58: 1549.205264 | D58: 1934.08213 | E58: 2377.910586 | F58: 2802.843754 | G58: 3331.125652
A59: Major Conventional (non SV) | B59: # | C59: 47.42491806 | D59: 57.91590566 | E59: 69.97770892 | F59: 81.47274711 | G59: 94.60583683
A60: Minor Conventional (non SV) | B60: # | C60: 5415.073364 | D60: 6760.36731 | E60: 8311.719932 | F60: 9797.026195 | G60: 11643.57636
A61: Major LED | B61: # | C61: 0 | D61: 0 | E61: 0 | F61: 0 | G61: 0
A62: Minor LED | B62: # | C62: 0 | D62: 0 | E62: 0 | F62: 0 | G62: 0
A63: Total | B63: # | C63: =SUM(C57:C62) -> 10430.08841 | D63: =SUM(D57:D62) -> 12926.93989 | E63: =SUM(E57:E62) -> 15803.59673 | F63: =SUM(F57:F62) -> 18553.89277 | G63: =SUM(G57:G62) -> 21888.49013
A64: Total Disposals | B64: # | C64: =SUM(C54,C63) -> 18051.42331 | D64: =SUM(D54,D63) -> 21934.98965 | E64: =SUM(E54,E63) -> 26438.72992 | F64: =SUM(F54,F63) -> 30592.6196 | G64: =SUM(G54,G63) -> 35762.96671
A66: Public Lights Contributed Assets
A68: Contributed Assets (Conventional)
A69: Gifted | B69: $M Nominal | C69: 1.504209834 | D69: 1.544815639 | E69: 1.483161962 | F69: 1.521836068 | G69: 1.394423146
A70: Cash Contribution | B70: $M Nominal | C70: 0 | D70: 0 | E70: 0 | F70: 0 | G70: 0
A71: Total Contributed | B71: $M Nominal | C71: =SUM(C69:C70) -> 1.504209834 | D71: =SUM(D69:D70) -> 1.544815639 | E71: =SUM(E69:E70) -> 1.483161962 | F71: =SUM(F69:F70) -> 1.521836068 | G71: =SUM(G69:G70) -> 1.394423146
A73: Contributed Assets (LED)
A74: Gifted | B74: $M Nominal | C74: 25.79643109 | D74: 27.04451795 | E74: 28.5081706 | F74: 29.86679959 | G74: 31.51326438
A75: Cash Contribution | B75: $M Nominal | C75: 0 | D75: 0 | E75: 0 | F75: 0 | G75: 0
A76: Total Contributed | B76: $M Nominal | C76: =SUM(C74:C75) -> 25.79643109 | D76: =SUM(D74:D75) -> 27.04451795 | E76: =SUM(E74:E75) -> 28.5081706 | F76: =SUM(F74:F75) -> 29.86679959 | G76: =SUM(G74:G75) -> 31.51326438
A78: Pricing Allocators
A79: Proportion of asset base related to refurbishment | B79: % | C79: 0.1
A80: Relativity Major to Minor
A81: Opex + tax | B81: # | C81: 1.5
A82: Asset charge | B82: # | C82: 1.8
A84: Price Smoothing Inputs
A85: Expected CPI | B85: % | C85: 0.025
A86: Discount rate for smoothing | B86: % | C86: ='[13]Energex Revenue Requirement'!$F$2 -> 0.05492
A87: X factor | B87: % | C87: 0
A88: Z factor Conventional | B88: % | C88: 0.3864677545
A89: Z factor LED | B89: % | C89: 0.5453006974
A91: % of PLAB associated with Poles, cabling and some residual brackets | B91: % | C91: 0.7

Sheet Public Lighting Pricing
A1: Public Lighting Price Calculations | B1: Units | C1: 2020-21 | D1: 2021-22 | E1: 2022-23 | F1: 2023-24 | G1: 2024-25
A3: Building Block Revenue - Linked to PL PTRM
A5: Opex Charge
A6: O&M Conventional | B6: $M Nominal | C6: 16.88979829 | D6: 16.64377497 | E6: 15.68422016 | F6: 14.39143139 | G6: 12.70521249
A7: O&M LED | B7: $M Nominal | C7: 0.7438868715 | D7: 1.320413706 | E7: 2.247010502 | F7: 3.48860335 | G7: 4.966297486
A8: Carry-over amounts Conventional | B8: $M Nominal | C8: 0 | D8: 0 | E8: 0 | F8: 0 | G8: 0
A9: Carry-over amounts LED | B9: $M Nominal | C9: 0 | D9: 0 | E9: 0 | F9: 0 | G9: 0
A10: Benchmark Tax liability Conventional | B10: $M Nominal | C10: =2.41091367694536*(C125+C126)/C129 -> 2.269230905 | D10: =2.41580202593078*(D125+D126)/D129 -> 2.153435622 | E10: =2.50342619552143*(E125+E126)/E129 -> 2.021538706 | F10: =2.58031958884931*(F125+F126)/F129 -> 1.841629737 | G10: =2.67560855953958*(G125+G126)/G129 -> 1.631284574 | I10: Tax Building Block for ACS Public Lighting LED is pro-rata allocated to both Conventional and LED based on the porportion of lights in the total public light population
A11: Tax liability attributable to O&M Revenue | B11: $M Nominal | C11: 0 | D11: 0 | E11: 0 | F11: 0 | G11: 0
A12: Tax liability attributable to Capex Revenue | B12: $M Nominal | C12: 0 | D12: 0 | E12: 0 | F12: 0 | G12: 0
A13: Tax liability attributable to Gifted Assets | B13: $M Nominal | C13: =C10*'Input Data'!C69/'Input Data'!C$71 -> 2.269230905 | D13: =D10*'Input Data'!D69/'Input Data'!D$71 -> 2.153435622 | E13: =E10*'Input Data'!E69/'Input Data'!E$71 -> 2.021538706 | F13: =F10*'Input Data'!F69/'Input Data'!F$71 -> 1.841629737 | G13: =G10*'Input Data'!G69/'Input Data'!G$71 -> 1.631284574
A14: Tax liability attributable to Contributed Assets | B14: $M Nominal | C14: =C10*'Input Data'!C70/'Input Data'!C$71 -> 0 | D14: =D10*'Input Data'!D70/'Input Data'!D$71 -> 0 | E14: =E10*'Input Data'!E70/'Input Data'!E$71 -> 0 | F14: =F10*'Input Data'!F70/'Input Data'!F$71 -> 0 | G14: =G10*'Input Data'!G70/'Input Data'!G$71 -> 0
A15: Benchmark Tax liability LED | B15: $M Nominal | C15: =2.41091367694536*(C127+C128)/C129 -> 0.141682772 | D15: =2.41580202593078*(D127+D128)/D129 -> 0.2623664037 | E15: =2.50342619552143*(E127+E128)/E129 -> 0.4818874896 | F15: =2.58031958884931*(F127+F128)/F129 -> 0.738689852 | G15: =2.67560855953958*(G127+G128)/G129 -> 1.044323986 | I15: Tax Building Block for ACS Public Lighting LED is pro-rata allocated to both Conventional and LED based on the porportion of lights in the total public light population
A16: Tax liability attributable to O&M Revenue | B16: $M Nominal | C16: 0 | D16: 0 | E16: 0 | F16: 0 | G16: 0
A17: Tax liability attributable to Capex Revenue | B17: $M Nominal | C17: 0 | D17: 0 | E17: 0 | F17: 0 | G17: 0
A18: Tax liability attributable to Gifted Assets | B18: $M Nominal | C18: =C$15*'Input Data'!C74/'Input Data'!C$76 -> 0.141682772 | D18: =D$15*'Input Data'!D74/'Input Data'!D$76 -> 0.2623664037 | E18: =E$15*'Input Data'!E74/'Input Data'!E$76 -> 0.4818874896 | F18: =F$15*'Input Data'!F74/'Input Data'!F$76 -> 0.738689852 | G18: =G$15*'Input Data'!G74/'Input Data'!G$76 -> 1.044323986
A19: Tax liability attributable to Contributed Assets | B19: $M Nominal | C19: =C$15*'Input Data'!C75/'Input Data'!C$76 -> 0 | D19: =D$15*'Input Data'!D75/'Input Data'!D$76 -> 0 | E19: =E$15*'Input Data'!E75/'Input Data'!E$76 -> 0 | F19: =F$15*'Input Data'!F75/'Input Data'!F$76 -> 0 | G19: =G$15*'Input Data'!G75/'Input Data'!G$76 -> 0
A20: Total Opex Charge Conventional | B20: $M Nominal | C20: =SUM(C6,C8)+C11+C6/(C6+(C24+C25)*C23)*(C13+C14) -> 17.99399815 | D20: =SUM(D6,D8)+D11+D6/(D6+(D24+D25)*D23)*(D13+D14) -> 17.68196291 | E20: 16.63300096 | F20: 15.2257013 | G20: 13.42270142
A21: Total Opex Charge LED | B21: $M Nominal | C21: =SUM(C7,C9)+C16+C7/(C7+C28+C29)*(C18+C19) -> 0.8062145066 | D21: =SUM(D7,D9)+D16+D7/(D7+D28+D29)*(D18+D19) -> 1.412875098 | E21: =SUM(E7,E9)+E16+E7/(E7+E28+E29)*(E18+E19) -> 2.417951498 | F21: =SUM(F7,F9)+F16+F7/(F7+F28+F29)*(F18+F19) -> 3.758601292 | G21: =SUM(G7,G9)+G16+G7/(G7+G28+G29)*(G18+G19) -> 5.360266757
A23: Capex Charge Conventional | B23: NPL4 Switch | C23: 1 | D23: 1 | E23: 1 | F23: 1 | G23: 1
A24: Return on capital | B24: $M Nominal | C24: 8.065095149 | D24: 7.616057149 | E24: 7.076283937 | F24: 6.455307256 | G24: 5.74604121
A25: Return of capital | B25: $M Nominal | C25: 9.755174633 | D25: 10.26310596 | E25: 10.65739178 | F25: 10.92198235 | G25: 10.43534797
A26: Total Capex Charge Conventional | B26: $M Nominal | C26: =(SUM(C24:C25)+C12+(C24+C25)/(C6+C24+C25)*(C13+C14))*C23 -> 18.98530083 | D26: =(SUM(D24:D25)+D12+(D24+D25)/(D6+D24+D25)*(D13+D14))*D23 -> 18.99441079 | E26: 18.80643362 | F26: 18.38464944 | G26: 17.09518482
A27: Capex Charge LED
A28: Return on capital | B28: $M Nominal | C28: 0.4286437665 | D28: 1.241712113 | E28: 2.015600196 | F28: 2.856136635 | G28: 3.756522567
A29: Return of capital | B29: $M Nominal | C29: 0.5184681297 | D29: 1.18465095 | E29: 2.071775295 | F29: 3.199761989 | G29: 4.44171833
A30: Total Capex Charge LED | B30: $M Nominal | C30: =SUM(C28:C29)+C17+(C28+C29)/(C7+C28+C29)*(C18+C19) -> 1.026467033 | D30: =SUM(D28:D29)+D17+(D28+D29)/(D7+D28+D29)*(D18+D19) -> 2.596268074 | E30: =SUM(E28:E29)+E17+(E28+E29)/(E7+E28+E29)*(E18+E19) -> 4.398321984 | F30: =SUM(F28:F29)+F17+(F28+F29)/(F7+F28+F29)*(F18+F19) -> 6.524590534 | G30: =SUM(G28:G29)+G17+(G28+G29)/(G7+G28+G29)*(G18+G19) -> 8.848595612
A32: ARR for Conventional | B32: $M Nominal | C32: =SUM(C20,C26) -> 36.97929898 | D32: =SUM(D20,D26) -> 36.67637369 | E32: =SUM(E20,E26) -> 35.43943458 | F32: =SUM(F20,F26) -> 33.61035073 | G32: =SUM(G20,G26) -> 30.51788624
A33: ARR for LED | B33: $M Nominal | C33: =SUM(C21,C30) -> 1.83268154 | D33: =SUM(D21,D30) -> 4.009143172 | E33: =SUM(E21,E30) -> 6.816273482 | F33: =SUM(F21,F30) -> 10.28319183 | G33: =SUM(G21,G30) -> 14.20886237
A34: ARR for Total | B34: $M Nominal | C34: =C32+C33 -> 38.81198052 | D34: =D32+D33 -> 40.68551687 | E34: =E32+E33 -> 42.25570806 | F34: =F32+F33 -> 43.89354256 | G34: =G32+G33 -> 44.72674861
A36: Opex and Capex Charge Components
A37: Opex Charge for Conventional Lights | B37: $M Nominal | C37: =C20 -> 17.99399815 | D37: 17.68196291 | E37: 16.63300096 | F37: 15.2257013 | G37: 13.42270142
A38: Opex Charge for LED | B38: $M Nominal | C38: 0.8062145066 | D38: 1.412875098 | E38: 2.417951498 | F38: 3.758601292 | G38: 5.360266757
A39: Capex Charge for Conventional Lights | B39: $M Nominal | C39: =C26 -> 18.98530083 | D39: =D26 -> 18.99441079 | E39: =E26 -> 18.80643362 | F39: =F26 -> 18.38464944 | G39: =G26 -> 17.09518482
A40: Capex Charge for LED | B40: $M Nominal | C40: =C30 -> 1.026467033 | D40: =D30 -> 2.596268074 | E40: =E30 -> 4.398321984 | F40: =F30 -> 6.524590534 | G40: =G30 -> 8.848595612
A42: Public Lights Population
A44: Opening Population Public Lights
A45: NPL1 (Energex Owned & Operated)
A46: Major Conventional | B46: # | C46: ='Input Data'!C6+'Input Data'!C8 -> 35885.34505 | D46: ='Input Data'!D6+'Input Data'!D8 -> 34576.10068 | E46: ='Input Data'!E6+'Input Data'!E8 -> 32244.14177 | F46: ='Input Data'!F6+'Input Data'!F8 -> 29544.00059 | G46: ='Input Data'!G6+'Input Data'!G8 -> 26526.2787
A47: Minor Conventional | B47: # | C47: ='Input Data'!C7+'Input Data'!C9 -> 110801.3298 | D47: ='Input Data'!D7+'Input Data'!D9 -> 107217.4768 | E47: ='Input Data'!E7+'Input Data'!E9 -> 100541.386 | F47: ='Input Data'!F7+'Input Data'!F9 -> 92606.39395 | G47: ='Input Data'!G7+'Input Data'!G9 -> 83585.38901
A48: Major LED | B48: # | C48: ='Input Data'!C10 -> 703.5833485 | D48: ='Input Data'!D10 -> 2042.827715 | E48: ='Input Data'!E10 -> 4444.786622 | F48: ='Input Data'!F10 -> 7264.9278 | G48: ='Input Data'!G10 -> 10452.64969
A49: Minor LED | B49: # | C49: ='Input Data'!C11 -> 2024.654226 | D49: ='Input Data'!D11 -> 5878.507182 | E49: ='Input Data'!E11 -> 12874.59804 | F49: ='Input Data'!F11 -> 21169.59005 | G49: ='Input Data'!G11 -> 30600.59499
A50: Total | B50: # | C50: =SUM(C46:C49) -> 149414.9124 | D50: =SUM(D46:D49) -> 149714.9124 | E50: =SUM(E46:E49) -> 150104.9124 | F50: =SUM(F46:F49) -> 150584.9124 | G50: =SUM(G46:G49) -> 151164.9124
A52: NPL2 (Gifted & Energex Operated)
A53: Major Conventional | B53: # | C53: ='Input Data'!C15+'Input Data'!C17 -> 55559.54198 | D53: ='Input Data'!D15+'Input Data'!D17 -> 53790.26182 | E53: ='Input Data'!E15+'Input Data'!E17 -> 49557.77137 | F53: ='Input Data'!F15+'Input Data'!F17 -> 44443.80517 | G53: ='Input Data'!G15+'Input Data'!G17 -> 38489.78235
A54: Minor Conventional | B54: # | C54: ='Input Data'!C16+'Input Data'!C18 -> 123472.7832 | D54: ='Input Data'!D16+'Input Data'!D18 -> 120148.7374 | E54: ='Input Data'!E16+'Input Data'!E18 -> 111454.2879 | F54: ='Input Data'!F16+'Input Data'!F18 -> 100764.6574 | G54: ='Input Data'!G16+'Input Data'!G18 -> 88164.78746
A55: Major LED | B55: # | C55: ='Input Data'!C19 -> 1696.529628 | D55: ='Input Data'!D19 -> 4925.809785 | E55: ='Input Data'!E19 -> 10628.30023 | F55: ='Input Data'!F19 -> 17232.26644 | G55: ='Input Data'!G19 -> 24686.28926
A56: Minor LED | B56: # | C56: ='Input Data'!C20 -> 3640.232798 | D56: ='Input Data'!D20 -> 10569.27863 | E56: ='Input Data'!E20 -> 22898.72807 | F56: ='Input Data'!F20 -> 37253.35859 | G56: ='Input Data'!G20 -> 53548.22854
A57: Total | B57: # | C57: =SUM(C53:C56) -> 184369.0876 | D57: =SUM(D53:D56) -> 189434.0876 | E57: =SUM(E53:E56) -> 194539.0876 | F57: =SUM(F53:F56) -> 199694.0876 | G57: =SUM(G53:G56) -> 204889.0876
A58: Total Opening Lights | B58: # | C58: =SUM(C50,C57) -> 333784 | D58: =SUM(D50,D57) -> 339149 | E58: =SUM(E50,E57) -> 344644 | F58: =SUM(F50,F57) -> 350279 | G58: =SUM(G50,G57) -> 356054
A60: Plus Additions
A61: NPL1 (Energex Owned & Operated)
A62: Major Conventional | B62: # | C62: ='Input Data'!C27+'Input Data'!C29 -> 0 | D62: ='Input Data'!D27+'Input Data'!D29 -> 0 | E62: ='Input Data'!E27+'Input Data'!E29 -> 0 | F62: ='Input Data'!F27+'Input Data'!F29 -> 0 | G62: ='Input Data'!G27+'Input Data'!G29 -> 0
A63: Minor Conventional | B63: # | C63: ='Input Data'!C28+'Input Data'!C30 -> 0 | D63: ='Input Data'!D28+'Input Data'!D30 -> 0 | E63: ='Input Data'!E28+'Input Data'!E30 -> 0 | F63: ='Input Data'!F28+'Input Data'!F30 -> 0 | G63: ='Input Data'!G28+'Input Data'!G30 -> 0
A64: Major LED | B64: # | C64: ='Input Data'!C31 -> 2042.827715 | D64: ='Input Data'!D31 -> 2401.958907 | E64: ='Input Data'!E31 -> 2820.141178 | F64: ='Input Data'!F31 -> 3187.721894 | G64: ='Input Data'!G31 -> 3618.254303
A65: Minor LED | B65: # | C65: ='Input Data'!C32 -> 5878.507182 | D65: ='Input Data'!D32 -> 6996.090856 | E65: ='Input Data'!E32 -> 8294.992016 | F65: ='Input Data'!F32 -> 9431.004936 | G65: ='Input Data'!G32 -> 10926.22227
A66: Total | B66: # | C66: =SUM(C62:C65) -> 7921.334897 | D66: =SUM(D62:D65) -> 9398.049763 | E66: =SUM(E62:E65) -> 11115.13319 | F66: =SUM(F62:F65) -> 12618.72683 | G66: =SUM(G62:G65) -> 14544.47658
A68: NPL2 (Gifted & Energex Operated)
A69: Major Conventional | B69: # | C69: ='Input Data'!C36+'Input Data'!C38 -> 0 | D69: ='Input Data'!D36+'Input Data'!D38 -> 0 | E69: ='Input Data'!E36+'Input Data'!E38 -> 0 | F69: ='Input Data'!F36+'Input Data'!F38 -> 0 | G69: ='Input Data'!G36+'Input Data'!G38 -> 0
A70: Minor Conventional | B70: # | C70: ='Input Data'!C37+'Input Data'!C39 -> 0 | D70: ='Input Data'!D37+'Input Data'!D39 -> 0 | E70: ='Input Data'!E37+'Input Data'!E39 -> 0 | F70: ='Input Data'!F37+'Input Data'!F39 -> 0 | G70: ='Input Data'!G37+'Input Data'!G39 -> 0
A71: Major LED | B71: # | C71: ='Input Data'!C40 -> 4925.809785 | D71: ='Input Data'!D40 -> 5702.490446 | E71: ='Input Data'!E40 -> 6603.966207 | F71: ='Input Data'!F40 -> 7454.022816 | G71: ='Input Data'!G40 -> 8433.78812
A72: Minor LED | B72: # | C72: ='Input Data'!C41 -> 10569.27863 | D72: ='Input Data'!D41 -> 12329.44944 | E72: ='Input Data'!E41 -> 14354.63052 | F72: ='Input Data'!F41 -> 16294.86995 | G72: ='Input Data'!G41 -> 18699.70201
A73: Total | B73: # | C73: =SUM(C69:C72) -> 15495.08841 | D73: =SUM(D69:D72) -> 18031.93989 | E73: =SUM(E69:E72) -> 20958.59673 | F73: =SUM(F69:F72) -> 23748.89277 | G73: =SUM(G69:G72) -> 27133.49013
A74: Total Additions | B74: # | C74: =SUM(C66,C73) -> 23416.42331 | D74: =SUM(D66,D73) -> 27429.98965 | E74: =SUM(E66,E73) -> 32073.72992 | F74: =SUM(F66,F73) -> 36367.6196 | G74: =SUM(G66,G73) -> 41677.96671
A76: Less Disposals
A77: NPL1 (Energex Owned & Operated)
A78: Major Conventional | B78: # | C78: ='Input Data'!C48+'Input Data'!C50 -> 2012.827715 | D78: ='Input Data'!D48+'Input Data'!D50 -> 2331.958907 | E78: ='Input Data'!E48+'Input Data'!E50 -> 2700.141178 | F78: ='Input Data'!F48+'Input Data'!F50 -> 3017.721894 | G78: ='Input Data'!G48+'Input Data'!G50 -> 3398.254303
A79: Minor Conventional | B79: # | C79: ='Input Data'!C49+'Input Data'!C51 -> 5608.507182 | D79: ='Input Data'!D49+'Input Data'!D51 -> 6676.090856 | E79: ='Input Data'!E49+'Input Data'!E51 -> 7934.992016 | F79: ='Input Data'!F49+'Input Data'!F51 -> 9021.004936 | G79: ='Input Data'!G49+'Input Data'!G51 -> 10476.22227
A80: Major LED | B80: # | C80: ='Input Data'!C52 -> 0 | D80: ='Input Data'!D52 -> 0 | E80: ='Input Data'!E52 -> 0 | F80: ='Input Data'!F52 -> 0 | G80: ='Input Data'!G52 -> 0
A81: Minor LED | B81: # | C81: ='Input Data'!C53 -> 0 | D81: ='Input Data'!D53 -> 0 | E81: ='Input Data'!E53 -> 0 | F81: ='Input Data'!F53 -> 0 | G81: ='Input Data'!G53 -> 0
A82: Total | B82: # | C82: =SUM(C78:C81) -> 7621.334897 | D82: =SUM(D78:D81) -> 9008.049763 | E82: =SUM(E78:E81) -> 10635.13319 | F82: =SUM(F78:F81) -> 12038.72683 | G82: =SUM(G78:G81) -> 13874.47658
A84: NPL2 (Gifted & Energex Operated)
A85: Major Conventional | B85: # | C85: ='Input Data'!C57+'Input Data'!C59 -> 3465.809785 | D85: ='Input Data'!D57+'Input Data'!D59 -> 4232.490446 | E85: ='Input Data'!E57+'Input Data'!E59 -> 5113.966207 | F85: ='Input Data'!F57+'Input Data'!F59 -> 5954.022816 | G85: ='Input Data'!G57+'Input Data'!G59 -> 6913.78812
A86: Minor Conventional | B86: # | C86: ='Input Data'!C58+'Input Data'!C60 -> 6964.278628 | D86: ='Input Data'!D58+'Input Data'!D60 -> 8694.44944 | E86: ='Input Data'!E58+'Input Data'!E60 -> 10689.63052 | F86: ='Input Data'!F58+'Input Data'!F60 -> 12599.86995 | G86: ='Input Data'!G58+'Input Data'!G60 -> 14974.70201
A87: Major LED | B87: # | C87: ='Input Data'!C61 -> 0 | D87: ='Input Data'!D61 -> 0 | E87: ='Input Data'!E61 -> 0 | F87: ='Input Data'!F61 -> 0 | G87: ='Input Data'!G61 -> 0
A88: Minor LED | B88: # | C88: ='Input Data'!C62 -> 0 | D88: ='Input Data'!D62 -> 0 | E88: ='Input Data'!E62 -> 0 | F88: ='Input Data'!F62 -> 0 | G88: ='Input Data'!G62 -> 0
A89: Total | B89: # | C89: =SUM(C85:C88) -> 10430.08841 | D89: =SUM(D85:D88) -> 12926.93989 | E89: =SUM(E85:E88) -> 15803.59673 | F89: =SUM(F85:F88) -> 18553.89277 | G89: =SUM(G85:G88) -> 21888.49013
A90: Total Disposals | B90: # | C90: =SUM(C82,C89) -> 18051.42331 | D90: =SUM(D82,D89) -> 21934.98965 | E90: =SUM(E82,E89) -> 26438.72992 | F90: =SUM(F82,F89) -> 30592.6196 | G90: =SUM(G82,G89) -> 35762.96671
A92: Closing Population Public Lights
A93: NPL1 (Energex Owned & Operated)
A94: Major Conventional | B94: # | C94: =(C46+C62-C78) -> 33872.51733 | D94: 32244.14177 | E94: 29544.00059 | F94: 26526.2787 | G94: 23128.0244
A95: Minor Conventional | B95: # | C95: 105192.8226 | D95: 100541.386 | E95: 92606.39395 | F95: 83585.38901 | G95: 73109.16674
A96: Major LED | B96: # | C96: 2746.411064 | D96: 4444.786622 | E96: 7264.9278 | F96: 10452.64969 | G96: 14070.904
A97: Minor LED | B97: # | C97: 7903.161408 | D97: 12874.59804 | E97: 21169.59005 | F97: 30600.59499 | G97: 41526.81726
A98: Total | B98: # | C98: =SUM(C94:C97) -> 149714.9124 | D98: =SUM(D94:D97) -> 150104.9124 | E98: =SUM(E94:E97) -> 150584.9124 | F98: =SUM(F94:F97) -> 151164.9124 | G98: =SUM(G94:G97) -> 151834.9124
A100: NPL2 (Gifted & Energex Operated)
A101: Major Conventional | B101: # | C101: =(C53+C69-C85) -> 52093.73219 | D101: 49557.77137 | E101: 44443.80517 | F101: 38489.78235 | G101: 31575.99423
A102: Minor Conventional | B102: # | C102: 116508.5046 | D102: 111454.2879 | E102: 100764.6574 | F102: 88164.78746 | G102: 73190.08546
A103: Major LED | B103: # | C103: 6622.339413 | D103: 10628.30023 | E103: 17232.26644 | F103: 24686.28926 | G103: 33120.07737
A104: Minor LED | B104: # | C104: 14209.51143 | D104: 22898.72807 | E104: 37253.35859 | F104: 53548.22854 | G104: 72247.93054
A105: Total | B105: # | C105: =SUM(C101:C104) -> 189434.0876 | D105: =SUM(D101:D104) -> 194539.0876 | E105: =SUM(E101:E104) -> 199694.0876 | F105: =SUM(F101:F104) -> 204889.0876 | G105: =SUM(G101:G104) -> 210134.0876
A106: Grand Total | B106: # | C106: =SUM(C98,C105) -> 339149 | D106: =SUM(D98,D105) -> 344644 | E106: =SUM(E98,E105) -> 350279 | F106: =SUM(F98,F105) -> 356054 | G106: =SUM(G98,G105) -> 361969
A108: Average No of Lights by Tariff
A109: NPL1 (Energex Owned & Operated)
A110: Major Conventional | B110: # | C110: =(C46+C94)/2 -> 34878.93119 | D110: 33410.12123 | E110: 30894.07118 | F110: 28035.13965 | G110: 24827.15155
A111: Minor Conventional | B111: # | C111: 107997.0762 | D111: 103879.4314 | E111: 96573.88996 | F111: 88095.89148 | G111: 78347.27787
A112: Major LED | B112: # | C112: 1724.997206 | D112: 3243.807169 | E112: 5854.857211 | F112: 8858.788747 | G112: 12261.77685
A113: Minor LED | B113: # | C113: 4963.907817 | D113: 9376.55261 | E113: 17022.09405 | F113: 25885.09252 | G113: 36063.70613
A114: Total | B114: # | C114: =SUM(C110:C113) -> 149564.9124 | D114: =SUM(D110:D113) -> 149909.9124 | E114: =SUM(E110:E113) -> 150344.9124 | F114: =SUM(F110:F113) -> 150874.9124 | G114: =SUM(G110:G113) -> 151499.9124
A116: NPL2 (Gifted & Energex Operated)
A117: Major Conventional | B117: # | C117: =(C53+C101)/2 -> 53826.63709 | D117: 51674.0166 | E117: 47000.78827 | F117: 41466.79376 | G117: 35032.88829
A118: Minor Conventional | B118: # | C118: 119990.6439 | D118: 115801.5127 | E118: 106109.4727 | F118: 94464.72244 | G118: 80677.43646
A119: Major LED | B119: # | C119: 4159.43452 | D119: 7777.055008 | E119: 13930.28334 | F119: 20959.27785 | G119: 28903.18331
A120: Minor LED | B120: # | C120: 8924.872112 | D120: 16734.00335 | E120: 30076.04333 | F120: 45400.79356 | G120: 62898.07954
A121: Total | B121: # | C121: =SUM(C117:C120) -> 186901.5876 | D121: =SUM(D117:D120) -> 191986.5876 | E121: =SUM(E117:E120) -> 197116.5876 | F121: =SUM(F117:F120) -> 202291.5876 | G121: =SUM(G117:G120) -> 207511.5876
A122: Grand total | B122: # | C122: =SUM(C114,C121) -> 336466.5 | D122: =SUM(D114,D121) -> 341896.5 | E122: =SUM(E114,E121) -> 347461.5 | F122: =SUM(F114,F121) -> 353166.5 | G122: =SUM(G114,G121) -> 359011.5
A124: Average No of Lights by Type
A125: Major Conventional | B125: # | C125: =SUM(C110+C117) -> 88705.56827 | D125: 85084.13782 | E125: 77894.85945 | F125: 69501.93341 | G125: 59860.03984
A126: Minor Conventional | B126: # | C126: 227987.7201 | D126: 219680.944 | E126: 202683.3626 | F126: 182560.6139 | G126: 159024.7143
A127: Major LED | B127: # | C127: 5884.431726 | D127: 11020.86218 | E127: 19785.14055 | F127: 29818.06659 | G127: 41164.96016
A128: Minor LED | B128: # | C128: 13888.77993 | D128: 26110.55596 | E128: 47098.13737 | F128: 71285.88608 | G128: 98961.78567
A129: Total | B129: # | C129: =SUM(C125:C128) -> 336466.5 | D129: =SUM(D125:D128) -> 341896.5 | E129: =SUM(E125:E128) -> 347461.5 | F129: =SUM(F125:F128) -> 353166.5 | G129: =SUM(G125:G128) -> 359011.5
A131: Weighted Average No of Lights by Type
A132: Major Conventional | B132: # | C132: =ROUND(C125*'Input Data'!$C$82,0) -> 159670 | D132: =ROUND(D125*'Input Data'!$C$82,0) -> 153151 | E132: =ROUND(E125*'Input Data'!$C$82,0) -> 140211 | F132: =ROUND(F125*'Input Data'!$C$82,0) -> 125103 | G132: =ROUND(G125*'Input Data'!$C$82,0) -> 107748
A133: Minor Conventional | B133: # | C133: =C126 -> 227987.7201 | D133: =D126 -> 219680.944 | E133: =E126 -> 202683.3626 | F133: =F126 -> 182560.6139 | G133: =G126 -> 159024.7143
A134: Major LED | B134: # | C134: =ROUND(C127*'Input Data'!$C$82,0) -> 10592 | D134: =ROUND(D127*'Input Data'!$C$82,0) -> 19838 | E134: =ROUND(E127*'Input Data'!$C$82,0) -> 35613 | F134: =ROUND(F127*'Input Data'!$C$82,0) -> 53673 | G134: =ROUND(G127*'Input Data'!$C$82,0) -> 74097
A135: Minor LED | B135: # | C135: =C128 -> 13888.77993 | D135: =D128 -> 26110.55596 | E135: =E128 -> 47098.13737 | F135: =F128 -> 71285.88608 | G135: =G128 -> 98961.78567
A136: Total | B136: # | C136: =SUM(C132:C135) -> 412138.5 | D136: =SUM(D132:D135) -> 418780.5 | E136: =SUM(E132:E135) -> 425605.5 | F136: =SUM(F132:F135) -> 432622.5 | G136: =SUM(G132:G135) -> 439831.5
A138: Price Components
A140: Opex Charge
A141: NPL1 (Energex Owned & Operated)
A142: Major Conventional | B142: $/day/light Nominal | C142: =C$37*1000000/(C$125+C$126/'Input Data'!$C$81) -> 74.75776442 | D142: =D$37*1000000/(D$125+D$126/'Input Data'!$C$81) -> 76.36740073 | E142: =E$37*1000000/(E$125+E$126/'Input Data'!$C$81) -> 78.08293732 | F142: =F$37*1000000/(F$125+F$126/'Input Data'!$C$81) -> 79.62857686 | G142: =G$37*1000000/(G$125+G$126/'Input Data'!$C$81) -> 80.91984171
A143: Minor Conventional | B143: $/day/light Nominal | C143: =C142/'Input Data'!$C$81 -> 49.83850961 | D143: =D142/'Input Data'!$C$81 -> 50.91160049 | E143: =E142/'Input Data'!$C$81 -> 52.05529155 | F143: =F142/'Input Data'!$C$81 -> 53.0857179 | G143: =G142/'Input Data'!$C$81 -> 53.94656114
A144: Major LED | B144: $/day/light Nominal | C144: =C$38*1000000/(C$127+C$128/'Input Data'!$C$81) -> 53.23790445 | D144: =D$38*1000000/(D$127+D$128/'Input Data'!$C$81) -> 49.70029877 | E144: =E$38*1000000/(E$127+E$128/'Input Data'!$C$81) -> 47.24047122 | F144: =F$38*1000000/(F$127+F$128/'Input Data'!$C$81) -> 48.59716256 | G144: =G$38*1000000/(G$127+G$128/'Input Data'!$C$81) -> 50.03073153
A145: Minor LED | B145: $/day/light Nominal | C145: =C144/'Input Data'!$C$81 -> 35.4919363 | D145: =D144/'Input Data'!$C$81 -> 33.13353251 | E145: =E144/'Input Data'!$C$81 -> 31.49364748 | F145: =F144/'Input Data'!$C$81 -> 32.39810837 | G145: =G144/'Input Data'!$C$81 -> 33.35382102
A147: NPL2 (Gifted & Energex Operated)
A148: Major Conventional | B148: $/day/light Nominal | C148: =C142 -> 74.75776442 | D148: 76.36740073 | E148: 78.08293732 | F148: 79.62857686 | G148: 80.91984171
A149: Minor Conventional | B149: $/day/light Nominal | C149: 49.83850961 | D149: 50.91160049 | E149: 52.05529155 | F149: 53.0857179 | G149: 53.94656114
A150: Major LED | B150: $/day/light Nominal | C150: 53.23790445 | D150: 49.70029877 | E150: 47.24047122 | F150: 48.59716256 | G150: 50.03073153
A151: Minor LED | B151: $/day/light Nominal | C151: 35.4919363 | D151: 33.13353251 | E151: 31.49364748 | F151: 32.39810837 | G151: 33.35382102
A153: Capex Charge
A154: NPL1 (Energex Owned & Operated)
A155: Major Conventional | B155: $/day/light Nominal | C155: =C$39*1000000/(C$125+C$126/'Input Data'!$C$82)*(1-'Input Data'!$C$79) -> 79.33850903 | D155: =D$39*1000000/(D$125+D$126/'Input Data'!$C$82)*(1-'Input Data'!$C$79) -> 82.53291862 | E155: =E$39*1000000/(E$125+E$126/'Input Data'!$C$82)*(1-'Input Data'!$C$79) -> 88.85081896 | F155: =F$39*1000000/(F$125+F$126/'Input Data'!$C$82)*(1-'Input Data'!$C$79) -> 96.80405566 | G155: =G$39*1000000/(G$125+G$126/'Input Data'!$C$82)*(1-'Input Data'!$C$79) -> 103.811936
A156: Minor Conventional | B156: $/day/light Nominal | C156: =ROUND(C155/'Input Data'!$C$82,2) -> 44.08 | D156: =ROUND(D155/'Input Data'!$C$82,2) -> 45.85 | E156: =ROUND(E155/'Input Data'!$C$82,2) -> 49.36 | F156: =ROUND(F155/'Input Data'!$C$82,2) -> 53.78 | G156: =ROUND(G155/'Input Data'!$C$82,2) -> 57.67
A157: Major LED | B157: $/day/light Nominal | C157: =C$40*1000000/(C$127+C$128/'Input Data'!$C$82)*(1-'Input Data'!$C$79) -> 67.92586484 | D157: =D$40*1000000/(D$127+D$128/'Input Data'!$C$82)*(1-'Input Data'!$C$79) -> 91.53705071 | E157: =E$40*1000000/(E$127+E$128/'Input Data'!$C$82)*(1-'Input Data'!$C$79) -> 86.14631654 | F157: =F$40*1000000/(F$127+F$128/'Input Data'!$C$82)*(1-'Input Data'!$C$79) -> 84.58683979 | G157: =G$40*1000000/(G$127+G$128/'Input Data'!$C$82)*(1-'Input Data'!$C$79) -> 82.8315695
A158: Minor LED | B158: $/day/light Nominal | C158: =ROUND(C157/'Input Data'!$C$82,2) -> 37.74 | D158: =ROUND(D157/'Input Data'!$C$82,2) -> 50.85 | E158: =ROUND(E157/'Input Data'!$C$82,2) -> 47.86 | F158: =ROUND(F157/'Input Data'!$C$82,2) -> 46.99 | G158: =ROUND(G157/'Input Data'!$C$82,2) -> 46.02
A160: NPL2 (Gifted & Energex Operated)
A161: Major Conventional | B161: $/day/light Nominal | C161: 0 | D161: 0 | E161: 0 | F161: 0 | G161: 0
A162: Minor Conventional | B162: $/day/light Nominal | C162: 0 | D162: 0 | E162: 0 | F162: 0 | G162: 0
A163: Major LED | B163: $/day/light Nominal | C163: 0 | D163: 0 | E163: 0 | F163: 0 | G163: 0
A164: Minor LED | B164: $/day/light Nominal | C164: 0 | D164: 0 | E164: 0 | F164: 0 | G164: 0
A166: Refurbishment Charge
A167: NPL1 (Energex Owned & Operated)
A168: Major Conventional | B168: $/day/light Nominal | C168: =C$39*1000000/(C$125+C$126/'Input Data'!$C$82)*'Input Data'!$C$79 -> 8.815389892 | D168: =D$39*1000000/(D$125+D$126/'Input Data'!$C$82)*'Input Data'!$C$79 -> 9.170324291 | E168: =E$39*1000000/(E$125+E$126/'Input Data'!$C$82)*'Input Data'!$C$79 -> 9.872313217 | F168: =F$39*1000000/(F$125+F$126/'Input Data'!$C$82)*'Input Data'!$C$79 -> 10.75600618 | G168: =G$39*1000000/(G$125+G$126/'Input Data'!$C$82)*'Input Data'!$C$79 -> 11.53465956
A169: Minor Conventional | B169: $/day/light Nominal | C169: =ROUND(C168/'Input Data'!$C$82,2) -> 4.9 | D169: =ROUND(D168/'Input Data'!$C$82,2) -> 5.09 | E169: =ROUND(E168/'Input Data'!$C$82,2) -> 5.48 | F169: =ROUND(F168/'Input Data'!$C$82,2) -> 5.98 | G169: =ROUND(G168/'Input Data'!$C$82,2) -> 6.41
A170: Major LED | B170: $/day/light Nominal | C170: =C$40*1000000/(C$127+C$128/'Input Data'!$C$82)*'Input Data'!$C$79 -> 7.547318316 | D170: =D$40*1000000/(D$127+D$128/'Input Data'!$C$82)*'Input Data'!$C$79 -> 10.17078341 | E170: =E$40*1000000/(E$127+E$128/'Input Data'!$C$82)*'Input Data'!$C$79 -> 9.571812948 | F170: =F$40*1000000/(F$127+F$128/'Input Data'!$C$82)*'Input Data'!$C$79 -> 9.398537754 | G170: =G$40*1000000/(G$127+G$128/'Input Data'!$C$82)*'Input Data'!$C$79 -> 9.203507722
A171: Minor LED | B171: $/day/light Nominal | C171: =ROUND(C170/'Input Data'!$C$82,2) -> 4.19 | D171: =ROUND(D170/'Input Data'!$C$82,2) -> 5.65 | E171: =ROUND(E170/'Input Data'!$C$82,2) -> 5.32 | F171: =ROUND(F170/'Input Data'!$C$82,2) -> 5.22 | G171: =ROUND(G170/'Input Data'!$C$82,2) -> 5.11
A173: NPL2 (Gifted & Energex Operated)
A174: Major Conventional | B174: $/day/light Nominal | C174: =C168 -> 8.815389892 | D174: 9.170324291 | E174: 9.872313217 | F174: 10.75600618 | G174: 11.53465956
A175: Minor Conventional | B175: $/day/light Nominal | C175: 4.9 | D175: 5.09 | E175: 5.48 | F175: 5.98 | G175: 6.41
A176: Major LED | B176: $/day/light Nominal | C176: 7.547318316 | D176: 10.17078341 | E176: 9.571812948 | F176: 9.398537754 | G176: 9.203507722
A177: Minor LED | B177: $/day/light Nominal | C177: 4.19 | D177: 5.65 | E177: 5.32 | F177: 5.22 | G177: 5.11
A179: Pricing Days in Year | B179: # | C179: 365.25 | D179: 365.25 | E179: 365.25 | F179: 365.25 | G179: 365.25
A181: Unsmoothed Prices
A183: NPL1 (Energex Owned & Operated)
A184: Major Conventional | B184: $/day/light Nominal | C184: =SUM(C142,C155,C168)/C$179 -> 0.4460278257 | D184: 0.460152344 | E184: 0.4840686365 | F184: 0.5124945618 | G184: 0.5373482199
A185: Minor Conventional | B185: $/day/light Nominal | C185: 0.2705503343 | D185: 0.2788544846 | E185: 0.2926633581 | F185: 0.3089547376 | G185: 0.3231391133
A186: Major LED | B186: $/day/light Nominal | C186: 0.3523917525 | D186: 0.4145328758 | E186: 0.3913993175 | F186: 0.3903697197 | G186: 0.3889549863
A187: Minor LED | B187: $/day/light Nominal | C187: 0.2119697092 | D187: 0.2454032375 | E187: 0.2318238124 | F187: 0.2316443761 | G187: 0.2313040959
A189: NPL2 (Gifted & Energex Operated)
A190: Major Conventional | B190: $/day/light Nominal | C190: =SUM(C148,C174)/C$179 -> 0.2288108263 | D190: 0.2341895278 | E190: 0.2408083519 | F190: 0.2474595018 | G190: 0.2531266291
A191: Minor Conventional | B191: $/day/light Nominal | C191: 0.1498658716 | D191: 0.153324026 | E191: 0.1575230432 | F191: 0.1617131223 | G191: 0.1652472584
A192: Major LED | B192: $/day/light Nominal | C192: 0.16642087 | D192: 0.1639180895 | E192: 0.1555435569 | F192: 0.1587835738 | G192: 0.1621745086
A193: Minor LED | B193: $/day/light Nominal | C193: 0.1086432205 | D193: 0.106183525 | E193: 0.1007902737 | F193: 0.1029927676 | G193: 0.1053082027
A195: Smoothed Prices
A197: NPL1 (Energex Owned & Operated)
A198: Major Conventional | B198: $/day/light Nominal | C198: =ROUND(C184*(1+'Input Data'!$C$88),5) -> 0.6184 | D198: =ROUND(C198*(1+'Input Data'!$C$85)*(1+'Input Data'!$C$87),5) -> 0.63386 | E198: =ROUND(D198*(1+'Input Data'!$C$85)*(1+'Input Data'!$C$87),5) -> 0.64971 | F198: =ROUND(E198*(1+'Input Data'!$C$85)*(1+'Input Data'!$C$87),5) -> 0.66595 | G198: =ROUND(F198*(1+'Input Data'!$C$85)*(1+'Input Data'!$C$87),5) -> 0.6826
A199: Minor Conventional | B199: $/day/light Nominal | C199: =ROUND(C185*(1+'Input Data'!$C$88),5) -> 0.37511 | D199: =ROUND(C199*(1+'Input Data'!$C$85)*(1+'Input Data'!$C$87),5) -> 0.38449 | E199: =ROUND(D199*(1+'Input Data'!$C$85)*(1+'Input Data'!$C$87),5) -> 0.3941 | F199: =ROUND(E199*(1+'Input Data'!$C$85)*(1+'Input Data'!$C$87),5) -> 0.40395 | G199: =ROUND(F199*(1+'Input Data'!$C$85)*(1+'Input Data'!$C$87),5) -> 0.41405
A200: Major LED | B200: $/day/light Nominal | C200: =ROUND(C186*(1+'Input Data'!$C$89),5) -> 0.54455 | D200: =ROUND(C200*(1+'Input Data'!$C$85)*(1+'Input Data'!$C$87),5) -> 0.55816 | E200: =ROUND(D200*(1+'Input Data'!$C$85)*(1+'Input Data'!$C$87),5) -> 0.57211 | F200: =ROUND(E200*(1+'Input Data'!$C$85)*(1+'Input Data'!$C$87),5) -> 0.58641 | G200: =ROUND(F200*(1+'Input Data'!$C$85)*(1+'Input Data'!$C$87),5) -> 0.60107
A201: Minor LED | B201: $/day/light Nominal | C201: =ROUND(C187*(1+'Input Data'!$C$89),5) -> 0.32756 | D201: =ROUND(C201*(1+'Input Data'!$C$85)*(1+'Input Data'!$C$87),5) -> 0.33575 | E201: =ROUND(D201*(1+'Input Data'!$C$85)*(1+'Input Data'!$C$87),5) -> 0.34414 | F201: =ROUND(E201*(1+'Input Data'!$C$85)*(1+'Input Data'!$C$87),5) -> 0.35274 | G201: =ROUND(F201*(1+'Input Data'!$C$85)*(1+'Input Data'!$C$87),5) -> 0.36156
A203: NPL2 (Gifted & Energex Operated)
A204: Major Conventional | B204: $/day/light Nominal | C204: =ROUND(C190*(1+'Input Data'!$C$88),5) -> 0.31724 | D204: =ROUND(C204*(1+'Input Data'!$C$85)*(1+'Input Data'!$C$87),5) -> 0.32517 | E204: =ROUND(D204*(1+'Input Data'!$C$85)*(1+'Input Data'!$C$87),5) -> 0.3333 | F204: =ROUND(E204*(1+'Input Data'!$C$85)*(1+'Input Data'!$C$87),5) -> 0.34163 | G204: =ROUND(F204*(1+'Input Data'!$C$85)*(1+'Input Data'!$C$87),5) -> 0.35017
A205: Minor Conventional | B205: $/day/light Nominal | C205: =ROUND(C191*(1+'Input Data'!$C$88),5) -> 0.20778 | D205: =ROUND(C205*(1+'Input Data'!$C$85)*(1+'Input Data'!$C$87),5) -> 0.21297 | E205: =ROUND(D205*(1+'Input Data'!$C$85)*(1+'Input Data'!$C$87),5) -> 0.21829 | F205: =ROUND(E205*(1+'Input Data'!$C$85)*(1+'Input Data'!$C$87),5) -> 0.22375 | G205: =ROUND(F205*(1+'Input Data'!$C$85)*(1+'Input Data'!$C$87),5) -> 0.22934
A206: Major LED | B206: $/day/light Nominal | C206: =ROUND(C192*(1+'Input Data'!$C$89),5) -> 0.25717 | D206: =ROUND(C206*(1+'Input Data'!$C$85)*(1+'Input Data'!$C$87),5) -> 0.2636 | E206: =ROUND(D206*(1+'Input Data'!$C$85)*(1+'Input Data'!$C$87),5) -> 0.27019 | F206: =ROUND(E206*(1+'Input Data'!$C$85)*(1+'Input Data'!$C$87),5) -> 0.27694 | G206: =ROUND(F206*(1+'Input Data'!$C$85)*(1+'Input Data'!$C$87),5) -> 0.28386
A207: Minor LED | B207: $/day/light Nominal | C207: =ROUND(C193*(1+'Input Data'!$C$89),5) -> 0.16789 | D207: =ROUND(C207*(1+'Input Data'!$C$85)*(1+'Input Data'!$C$87),5) -> 0.17209 | E207: =ROUND(D207*(1+'Input Data'!$C$85)*(1+'Input Data'!$C$87),5) -> 0.17639 | F207: =ROUND(E207*(1+'Input Data'!$C$85)*(1+'Input Data'!$C$87),5) -> 0.1808 | G207: =ROUND(F207*(1+'Input Data'!$C$85)*(1+'Input Data'!$C$87),5) -> 0.18532
A209: Recovered Revenue
A211: Recovered revenue Conventional | B211: $M Nominal | C211: =(SUMPRODUCT(C198:C199,C110:C111)+SUMPRODUCT(C204:C205,C117:C118))*C179/1000000 -> 38.01797129 | D211: =(SUMPRODUCT(D198:D199,D110:D111)+SUMPRODUCT(D204:D205,D117:D118))*D179/1000000 -> 37.46845176 | E211: =(SUMPRODUCT(E198:E199,E110:E111)+SUMPRODUCT(E204:E205,E117:E118))*E179/1000000 -> 35.41462413 | F211: =(SUMPRODUCT(F198:F199,F110:F111)+SUMPRODUCT(F204:F205,F117:F118))*F179/1000000 -> 32.71146822 | G211: =(SUMPRODUCT(G198:G199,G110:G111)+SUMPRODUCT(G204:G205,G117:G118))*G179/1000000 -> 29.27724703
A212: NPV of recovered revenue Conventional | B212: $M Nominal | C212: =NPV('Input Data'!C$86,C211:G211) -> 148.6966695
A213: NPV of revenue requirement Conventional | B213: $M Nominal | C213: =NPV('Input Data'!C$86,C$32:G$32) -> 148.6968815
A214: Difference Conventional | B214: $M Nominal | C214: =C212-C213 -> -0.0002119680046
A216: Recovered revenue LED | B216: $M Nominal | C216: =(SUMPRODUCT(C200:C201,C112:C113)+SUMPRODUCT(C206:C207,C119:C120))*C179/1000000 -> 1.874975602 | D216: =(SUMPRODUCT(D200:D201,D112:D113)+SUMPRODUCT(D206:D207,D119:D120))*D179/1000000 -> 3.611784591 | E216: =(SUMPRODUCT(E200:E201,E112:E113)+SUMPRODUCT(E206:E207,E119:E120))*E179/1000000 -> 6.67550709 | F216: =(SUMPRODUCT(F200:F201,F112:F113)+SUMPRODUCT(F206:F207,F119:F120))*F179/1000000 -> 10.35064287 | G216: =(SUMPRODUCT(G200:G201,G112:G113)+SUMPRODUCT(G206:G207,G119:G120))*G179/1000000 -> 14.7086575
A217: NPV of recovered revenue LED | B217: $M Nominal | C217: =NPV('Input Data'!C$86,C216:G216) -> 30.3252322
A218: NPV of revenue requirement LED | B218: $M Nominal | C218: =NPV('Input Data'!C$86,C$33:G$33) -> 30.32508821
A219: Difference LED | B219: $M Nominal | C219: =C217-C218 -> 0.0001439899117

Sheet Output Tables
A1: Public Lighting Prices | B1: 2020-21 | D1: 2021-22 | F1: 2022-23 | H1: 2023-24 | J1: 2024-25
B2: Conventional | C2: LED | D2: Conventional | E2: LED | F2: Conventional | G2: LED | H2: Conventional | I2: LED | J2: Conventional | K2: LED
A3: NPL1 (Energex Owned & Operated)
A4: Major | B4: ='Public Lighting Pricing'!C198 -> 0.6184 | C4: ='Public Lighting Pricing'!C200 -> 0.54455 | D4: ='Public Lighting Pricing'!D198 -> 0.63386 | E4: ='Public Lighting Pricing'!D200 -> 0.55816 | F4: ='Public Lighting Pricing'!E198 -> 0.64971 | G4: ='Public Lighting Pricing'!E200 -> 0.57211 | H4: ='Public Lighting Pricing'!F198 -> 0.66595 | I4: ='Public Lighting Pricing'!F200 -> 0.58641 | J4: ='Public Lighting Pricing'!G198 -> 0.6826 | K4: ='Public Lighting Pricing'!G200 -> 0.60107
A5: Minor | B5: ='Public Lighting Pricing'!C199 -> 0.37511 | C5: ='Public Lighting Pricing'!C201 -> 0.32756 | D5: ='Public Lighting Pricing'!D199 -> 0.38449 | E5: ='Public Lighting Pricing'!D201 -> 0.33575 | F5: ='Public Lighting Pricing'!E199 -> 0.3941 | G5: ='Public Lighting Pricing'!E201 -> 0.34414 | H5: ='Public Lighting Pricing'!F199 -> 0.40395 | I5: ='Public Lighting Pricing'!F201 -> 0.35274 | J5: ='Public Lighting Pricing'!G199 -> 0.41405 | K5: ='Public Lighting Pricing'!G201 -> 0.36156
A6: NPL2 (Gifted & Energex Operated)
A7: Major | B7: ='Public Lighting Pricing'!C204 -> 0.31724 | C7: ='Public Lighting Pricing'!C206 -> 0.25717 | D7: ='Public Lighting Pricing'!D204 -> 0.32517 | E7: ='Public Lighting Pricing'!D206 -> 0.2636 | F7: ='Public Lighting Pricing'!E204 -> 0.3333 | G7: ='Public Lighting Pricing'!E206 -> 0.27019 | H7: ='Public Lighting Pricing'!F204 -> 0.34163 | I7: ='Public Lighting Pricing'!F206 -> 0.27694 | J7: ='Public Lighting Pricing'!G204 -> 0.35017 | K7: ='Public Lighting Pricing'!G206 -> 0.28386
A8: Minor | B8: ='Public Lighting Pricing'!C205 -> 0.20778 | C8: ='Public Lighting Pricing'!C207 -> 0.16789 | D8: ='Public Lighting Pricing'!D205 -> 0.21297 | E8: ='Public Lighting Pricing'!D207 -> 0.17209 | F8: ='Public Lighting Pricing'!E205 -> 0.21829 | G8: ='Public Lighting Pricing'!E207 -> 0.17639 | H8: ='Public Lighting Pricing'!F205 -> 0.22375 | I8: ='Public Lighting Pricing'!F207 -> 0.1808 | J8: ='Public Lighting Pricing'!G205 -> 0.22934 | K8: ='Public Lighting Pricing'!G207 -> 0.18532
A9: NPL4
A10: Major | C10: 0.54 | E10: =ROUND(C10*(1+'Input Data'!$C$85)*(1+'Input Data'!$C$87),5) -> 0.5535 | G10: =ROUND(E10*(1+'Input Data'!$C$85)*(1+'Input Data'!$C$87),5) -> 0.56734 | I10: =ROUND(G10*(1+'Input Data'!$C$85)*(1+'Input Data'!$C$87),5) -> 0.58152 | K10: =ROUND(I10*(1+'Input Data'!$C$85)*(1+'Input Data'!$C$87),5) -> 0.59606
A11: Minor | C11: 0.33 | E11: =ROUND(C11*(1+'Input Data'!$C$85)*(1+'Input Data'!$C$87),5) -> 0.33825 | G11: =ROUND(E11*(1+'Input Data'!$C$85)*(1+'Input Data'!$C$87),5) -> 0.34671 | I11: =ROUND(G11*(1+'Input Data'!$C$85)*(1+'Input Data'!$C$87),5) -> 0.35538 | K11: =ROUND(I11*(1+'Input Data'!$C$85)*(1+'Input Data'!$C$87),5) -> 0.36426
